fUST/lending_fUST_20240305
["ID","MTS","AMOUNT","RATE_DAILY","PERIOD"]
[316897264,1709645210403,-178.31464165,0.00021569,2]
[316897265,1709645210431,-168.48969867,0.00021668,2]
[316897274,1709645329616,8437.40436306,0.000195,2]
[316897276,1709645335389,9000.0,0.000194,2]
[316897277,1709645341701,9000.0,0.000193,2]
[316897278,1709645355133,9000.0,0.000192,2]
[316897279,1709645362349,10000.0,0.000191,2]
[316897280,1709645368772,10000.0,0.000191,2]
[316897287,1709645374755,10000.0,0.000191,2]
[316897288,1709645380507,9000.0,0.000191,2]
[316897289,1709645386240,10000.0,0.000191,2]
[316897290,1709645395314,10000.0,0.000191,2]
[316897295,1709645401145,10000.0,0.000191,2]
[316897296,1709645407103,10000.0,0.000191,2]
[316897297,1709645413423,10000.0,0.000191,2]
[316897298,1709645423758,13796.3473318,0.00018375,2]
[316897968,1709645438484,-1000.0,0.000191,2]
[316897971,1709645438495,-1000.0,0.000192,2]
[316897972,1709645438505,-178.31464164,0.000192,2]
[316897975,1709645438515,-20490.31178222,0.00019299,2]
[316897977,1709645438525,-1000.0,0.000193,2]
[316897979,1709645438535,-10000.0,0.000193,2]
[316897981,1709645438544,-1000.0,0.000194,2]
[316897983,1709645438554,-1562.59563694,0.000195,2]
[316897984,1709645438563,-8478.10247039,0.00021041,2]
[316897987,1709645438572,-19151.0485897,0.00021042,2]
[316897990,1709645438582,-168.73127535,0.00021344,2]
[316897992,1709645438592,-538.72875726,0.00021671,2]
[316897994,1709645438602,-166.666666,0.00021672,2]
[316897997,1709645438612,-3200.93090583,0.00022169,2]
[316897998,1709645438621,-875.09853826,0.00022999,2]
[316898000,1709645438630,-155.0,0.00023,2]
[316898003,1709645438640,-346.05655804,0.00023135,5]
[316898004,1709645438649,-341.31426179,0.00023287,2]
[316898007,1709645438658,-171.24940655,0.000238,2]
[316898008,1709645438670,-199.973192,0.00023808,2]
[316898010,1709645438679,-727.87,0.0002389,3]
[316898013,1709645438688,-6967.80124356,0.000239,2]
[316898058,1709645439110,-2051.12314481,0.000239,2]
[316898060,1709645439121,-9980.2,0.000239,2]
[316898067,1709645439176,-47316.75138769,0.000239,2]
[316898069,1709645439185,-503.70576388,0.000239,2]
[316898072,1709645439195,-153.0,0.000239,2]
[316898074,1709645439207,-200.8478084,0.000239,2]
[316898075,1709645439217,-200.8478084,0.000239,2]
[316898078,1709645439226,-153.0,0.000239,2]
[316898079,1709645439236,-401.6956168,0.000239,2]
[316898081,1709645439246,-306.9518208,0.000239,2]
[316898083,1709645439256,-200.8478084,0.000239,2]
[316898085,1709645439265,-153.0,0.000239,2]
[316898087,1709645439275,-200.8478084,0.000239,2]
[316898089,1709645439285,-171.24940655,0.000239,2]
[316898092,1709645439295,-16340.5128132,0.0002398,3]
[316898093,1709645439304,-744.6625292,0.00023998,2]
[316898096,1709645439315,-159.91576652,0.00023998,2]
[316898097,1709645439324,-238.45907278,0.00023998,2]
[316898099,1709645439333,-427.4305126,0.00023998,2]
[316898101,1709645439345,-165.46156469,0.00023998,2]
[316898103,1709645439355,-5602.10357334,0.00023998,2]
[316898105,1709645439364,-236.16583631,0.00023998,2]
[316898108,1709645439373,-1120.26776198,0.00023998,2]
[316898109,1709645439382,-247.12424471,0.00023998,2]
[316898112,1709645439392,-155.3085889,0.00023998,2]
[316898114,1709645439402,-1604.8167343,0.00023998,2]
[316898116,1709645439413,-155.20976904,0.00023998,2]
[316898118,1709645439425,-311.44676722,0.00023998,2]
[316898120,1709645439436,-400.46869115,0.00023998,2]
[316898122,1709645439446,-557.15596753,0.00023998,2]
[316898124,1709645439456,-289.87438842,0.00023998,2]
[316898126,1709645439465,-2110.53294527,0.00023998,2]
[316898128,1709645439475,-529.49621871,0.00023998,2]
[316898130,1709645439484,-500.0,0.00023999,2]
[316898132,1709645439494,-209.7169491,0.00023999,2]
[316898134,1709645439504,-11171.42177621,0.00023999,2]
[316898136,1709645439514,-262.33652678,0.00024,3]
[316898138,1709645439523,-5332558.74648302,0.00024,5]
[316898140,1709645439535,-1322.9812056,0.00024,5]
[316898142,1709645439547,-117441.67055031,0.00024,5]
[316898144,1709645439559,-619.59764545,0.00024,5]
[316898147,1709645439573,-1915.40202248,0.00024,5]
[316898149,1709645439584,-3275.46023404,0.00024,5]
[316898190,1709645440000,163.29643085,0.00019099,2]
[316898234,1709645440479,-3757.7,0.00024,5]
[316898264,1709645440803,-90028.35594142,0.00024,5]
[316898266,1709645440816,-20102.2344258,0.00024,5]
[316898268,1709645440830,-23981.24575879,0.00024,5]
[316898270,1709645440843,-3538.82693698,0.00024,5]
[316898273,1709645440856,-1396.40097628,0.00024,5]
[316898517,1709645443386,-13393.97745023,0.00024,5]
[316898521,1709645443398,-1063.41610005,0.00024,5]
[316898525,1709645443410,-4424.69809325,0.00024,5]
[316898570,1709645443823,10000.0,0.000191,2]
[316898847,1709645446599,-20967.37982339,0.00024,5]
[316898860,1709645446710,-199594.3411057,0.00024,5]
[316898862,1709645446724,-87399.378,0.00024,5]
[316899260,1709645450567,10000.0,0.000191,2]
[316900367,1709645473295,10000.0,0.000191,2]
[316900368,1709645479217,10000.0,0.000191,2]
[316900369,1709645490033,1907.84,0.000191,2]
[316900385,1709645528452,-155.18466976,0.00021899,2]
[316900386,1709645528472,-1473.11926256,0.00021899,2]
[316900387,1709645528492,-106.69606768,0.000219,2]
[316900389,1709645599708,-500.0,0.000199,2]
[316900391,1709645670768,-3.70576388,0.000199,2]
[316900392,1709645670788,-1605.3304544,0.00021896,2]
[316900393,1709645670810,-401.08160822,0.00021896,2]
[316900394,1709645670830,-15244.78488328,0.00021896,2]
[316900395,1709645670851,-2595.97003118,0.00021897,2]
[316900396,1709645670873,-72.83611237,0.000219,2]
[316900397,1709645670893,-158.0,0.00022,2]
[316900398,1709645670913,-648.29114667,0.00022,2]
[316900400,1709645744248,-2637.10071894,0.00021895,2]
[316900401,1709645744268,-724.89928106,0.00022169,2]
[316900780,1709646638567,-528.19565968,0.00020433,2]
[316900782,1709646638577,-163.29643085,0.00020434,2]
[316900784,1709646638587,-394.1878927,0.00020435,2]
[316900786,1709646638596,-155.16136782,0.00020455,2]
[316900788,1709646638606,-1605.3304544,0.00020456,2]
[316900790,1709646638615,-178.476015,0.00020463,2]
[316900792,1709646638624,-427.666537,0.00020699,2]
[316900794,1709646638635,-3000.0,0.00021044,2]
[316900796,1709646638644,-178.476015,0.00021392,2]
[316900798,1709646638655,-160.6227699,0.00021494,2]
[316900800,1709646638667,-300.0,0.00021556,2]
[316900802,1709646638679,-372.6520167,0.00021557,2]
[316900817,1709646638799,-8255.6366116,0.00021557,2]
[316900819,1709646638821,-151.0,0.00022,2]
[316900821,1709646638830,-3200.93090583,0.00022,2]
[316900823,1709646638840,-7935.74691372,0.00022168,2]
[316900825,1709646638849,-155.15360207,0.00022169,2]
[316900827,1709646638858,-155.15826143,0.00022169,2]
[316900829,1709646638868,-875.09853826,0.0002217,2]
[316900831,1709646638878,-10259.0195083,0.00022226,2]
[316900833,1709646638887,-168.665703,0.00022242,2]
[316900835,1709646638896,-178.476015,0.00022322,2]
[316900838,1709646638906,-340.2397206,0.00022406,2]
[316900840,1709646638917,-5892.30461551,0.00022836,2]
[316900842,1709646638926,-159.0,0.00023014,2]
[316900844,1709646638936,-151.0,0.00023014,2]
[316900846,1709646638945,-5000.0,0.00023135,7]
[316900848,1709646638954,-5000.0,0.00023135,7]
[316900850,1709646638963,-565.53308345,0.00023136,5]
[316900852,1709646638973,-200.8478084,0.000232,2]
[316900854,1709646638982,-153.0,0.000232,2]
[316900856,1709646638992,-178.476015,0.00023252,2]
[316900858,1709646639001,-1000.0,0.00023593,2]
[316900860,1709646639010,-153.14542607,0.00023641,2]
[316900862,1709646639020,-1000.0,0.00023683,2]
[316900863,1709646639029,-1000.0,0.00023688,2]
[316900865,1709646639039,-1000.0,0.00023754,2]
[316900868,1709646639049,-153.0,0.000238,2]
[316900870,1709646639058,-153.0,0.000238,2]
[316900872,1709646639068,-200.8478084,0.000238,2]
[316900874,1709646639077,-748.0,0.000238,2]
[316900876,1709646639086,-1000.0,0.000238,2]
[316900878,1709646639095,-178.92764848,0.000238,2]
[316900880,1709646639104,-2655.1657,0.00023802,30]
[316900881,1709646639113,-1000.0,0.00023802,2]
[316900884,1709646639122,-178.92764847,0.0002385,2]
[316900886,1709646639132,-151.66681833,0.0002388,2]
[316900888,1709646639142,-210.49,0.0002389,3]
[316900890,1709646639151,-151.0,0.00023899,2]
[316900892,1709646639160,-151.0,0.00023899,2]
[316900894,1709646639172,-151.0,0.00023899,2]
[316900896,1709646639181,-151.0,0.00023899,2]
[316900898,1709646639190,-151.0,0.00023899,2]
[316900900,1709646639199,-151.0,0.00023899,2]
[316900902,1709646639208,-151.0,0.00023899,2]
[316900903,1709646639218,-151.0,0.00023899,2]
[316900905,1709646639227,-500.0,0.00023899,2]
[316900907,1709646639236,-500.0,0.00023899,2]
[316900909,1709646639245,-500.0,0.00023899,2]
[316900911,1709646639255,-372.03632,0.00023899,2]
[316900913,1709646639264,-209.20021539,0.00023899,2]
[316900915,1709646639273,-500.0,0.00023899,2]
[316900917,1709646639283,-500.0,0.00023899,2]
[316900919,1709646639292,-607.53231506,0.00023899,2]
[316900921,1709646639301,-500.0,0.00023899,2]
[316900923,1709646639312,-500.0,0.00023899,2]
[316900926,1709646639321,-500.0,0.00023899,2]
[316900928,1709646639330,-500.0,0.00023899,2]
[316900929,1709646639339,-500.0,0.00023899,2]
[316900931,1709646639349,-369.28776619,0.00023899,2]
[316900933,1709646639358,-500.0,0.00023899,2]
[316900935,1709646639367,-617.95024596,0.00023899,2]
[316900937,1709646639376,-500.0,0.00023899,2]
[316900939,1709646639385,-500.0,0.00023899,2]
[316900941,1709646639394,-329.35343344,0.00023899,2]
[316900943,1709646639403,-500.0,0.00023899,2]
[316900945,1709646639412,-271038.57437372,0.000239,2]
[316900948,1709646639424,-153.0,0.000239,2]
[316900949,1709646639433,-200.8478084,0.000239,2]
[316900952,1709646639444,-153.0,0.000239,2]
[316900954,1709646639453,-355.72019821,0.000239,2]
[316900956,1709646639462,-355.72019821,0.000239,2]
[316900958,1709646639471,-355.72019821,0.000239,2]
[316900960,1709646639480,-355.72019821,0.000239,2]
[316900962,1709646639489,-355.72019821,0.000239,2]
[316900964,1709646639498,-355.72019821,0.000239,2]
[316900965,1709646639506,-355.72019821,0.000239,2]
[316900967,1709646639516,-355.72019821,0.000239,2]
[316900969,1709646639525,-355.72019821,0.000239,2]
[316900972,1709646639535,-355.72019821,0.000239,2]
[316900973,1709646639545,-355.72019821,0.000239,2]
[316900975,1709646639554,-355.72019821,0.000239,2]
[316900977,1709646639563,-355.72019821,0.000239,2]
[316900980,1709646639573,-355.72019821,0.000239,2]
[316900982,1709646639582,-355.72019821,0.000239,2]
[316900983,1709646639591,-355.72019821,0.000239,2]
[316900986,1709646639600,-355.72019821,0.000239,2]
[316900988,1709646639609,-355.72019821,0.000239,2]
[316900990,1709646639621,-355.72019821,0.000239,2]
[316900992,1709646639631,-355.72,0.000239,2]
[316900994,1709646639641,-1422.88079284,0.000239,2]
[316900996,1709646639654,-1422.88079284,0.000239,2]
[316900998,1709646639666,-1422.88079284,0.000239,2]
[316901000,1709646639675,-1422.88079284,0.000239,2]
[316901002,1709646639684,-1422.88079284,0.000239,2]
[316901004,1709646639694,-1422.88079284,0.000239,2]
[316901006,1709646639704,-1422.88079284,0.000239,2]
[316901008,1709646639712,-1422.88079284,0.000239,2]
[316901010,1709646639721,-1422.88079284,0.000239,2]
[316901012,1709646639730,-1422.88079284,0.000239,2]
[316901014,1709646639739,-1422.88079284,0.000239,2]
[316901016,1709646639749,-178.92764847,0.000239,2]
[316901017,1709646639758,-1422.88079284,0.000239,2]
[316901020,1709646639769,-1422.88079284,0.000239,2]
[316901022,1709646639777,-1422.88079284,0.000239,2]
[316901024,1709646639791,-1422.88079284,0.000239,2]
[316901026,1709646639800,-1422.88079284,0.000239,2]
[316901028,1709646639809,-1422.88079284,0.000239,2]
[316901030,1709646639818,-1422.88079284,0.000239,2]
[316901032,1709646639827,-1422.88079284,0.000239,2]
[316901034,1709646639836,-1422.88,0.000239,2]
[316901036,1709646639845,-150.56711517,0.000239,2]
[316901038,1709646639854,-150.56711517,0.000239,2]
[316901040,1709646639863,-150.56711517,0.000239,2]
[316901042,1709646639872,-150.56711517,0.000239,2]
[316901044,1709646639881,-150.56711517,0.000239,2]
[316901046,1709646639890,-150.56711517,0.000239,2]
[316901048,1709646639899,-150.56711517,0.000239,2]
[316901050,1709646639907,-150.56711517,0.000239,2]
[316901052,1709646639917,-150.56711517,0.000239,2]
[316901054,1709646639925,-150.56711517,0.000239,2]
[316901057,1709646639934,-150.56,0.000239,2]
[316901060,1709646639943,-331.24765337,0.000239,2]
[316901062,1709646639954,-331.24765337,0.000239,2]
[316901064,1709646639967,-331.24765337,0.000239,2]
[316901066,1709646639976,-331.24765337,0.000239,2]
[316901068,1709646639985,-331.24765337,0.000239,2]
[316901070,1709646639995,-331.24765337,0.000239,2]
[316901072,1709646640004,-331.24765337,0.000239,2]
[316901074,1709646640014,-331.24765337,0.000239,2]
[316901076,1709646640023,-331.24765337,0.000239,2]
[316901078,1709646640032,-331.24765337,0.000239,2]
[316901080,1709646640041,-331.24765337,0.000239,2]
[316901083,1709646640051,-331.24765337,0.000239,2]
[316901085,1709646640060,-331.24765337,0.000239,2]
[316901087,1709646640069,-331.24765337,0.000239,2]
[316901089,1709646640079,-331.24765337,0.000239,2]
[316901091,1709646640087,-331.24765337,0.000239,2]
[316901093,1709646640096,-331.24765337,0.000239,2]
[316901095,1709646640105,-331.24765337,0.000239,2]
[316901098,1709646640114,-331.24765337,0.000239,2]
[316901101,1709646640123,-331.24,0.000239,2]
[316901103,1709646640132,-154.00961775,0.00023939,2]
[316901106,1709646640141,-2110.53294527,0.00023998,2]
[316901109,1709646640151,-155.20976904,0.00023998,2]
[316901112,1709646640160,-557.15596753,0.00023998,2]
[316901114,1709646640172,-155.3085889,0.00023998,2]
[316901116,1709646640181,-289.87438842,0.00023998,2]
[316901118,1709646640191,-236.16583631,0.00023998,2]
[316901120,1709646640201,-165.46156469,0.00023998,2]
[316901122,1709646640210,-159.91576652,0.00023998,2]
[316901124,1709646640220,-744.6625292,0.00023998,2]
[316901126,1709646640229,-427.4305126,0.00023998,2]
[316901128,1709646640238,-238.45907278,0.00023998,2]
[316901130,1709646640247,-1167.23284341,0.00023998,2]
[316901132,1709646640259,-311.44676722,0.00023998,2]
[316901134,1709646640268,-401.79270087,0.00023998,2]
[316901136,1709646640278,-201.40836715,0.00023998,2]
[316901138,1709646640287,-7801.58466861,0.00023998,2]
[316901140,1709646640297,-155.18000881,0.00023998,2]
[316901142,1709646640307,-176.94821592,0.00023998,2]
[316901144,1709646640317,-703.4462778,0.00023999,2]
[316901146,1709646640326,-4238.64774398,0.00023999,2]
[316901148,1709646640336,-369.68056323,0.00023999,2]
[316901150,1709646640345,-262.33652678,0.00024,3]
[316901152,1709646640355,-5018828.12559328,0.00024,5]
[316901155,1709646640368,-1046.10127469,0.00024,5]
[316901157,1709646640380,-556.84961509,0.00024,5]
[316901409,1709646642886,-1863.3548317,0.00020418,2]
[316901411,1709646642896,-4914.04695335,0.00024,5]
[316901413,1709646642910,-4846.36210018,0.00024,5]
[316901416,1709646642926,-6695.6533618,0.00024,5]
[316901418,1709646642939,-23707.46655231,0.00024,5]
[316901421,1709646642952,-2884.87305625,0.00024,5]
[316901494,1709646643538,-6230.0,0.00024,5]
[316901496,1709646643550,-102264.48724816,0.00024,5]
[316901921,1709646647678,-1023.73748649,0.000239,2]
[316901923,1709646647688,-58977.3787194,0.00024,5]
[316905949,1709646764087,156.68,0.000191,2]
[316905972,1709646879200,155.16136782,0.00019099,2]
[316905973,1709646904368,155.16136782,0.00019099,2]
[316905974,1709646922390,155.16136782,0.00019099,2]
[316905975,1709646942380,155.16136782,0.00019099,2]
[316905986,1709646960384,155.16136782,0.00019099,2]
[316905987,1709646980397,155.16136782,0.00019099,2]
[316905992,1709647006390,269.46644073,0.00019099,2]
[316906005,1709647123881,-155.16136782,0.00020111,2]
[316906006,1709647123904,-176.31919157,0.00020111,2]
[316906007,1709647123924,-290.27942906,0.00020111,2]
[316906008,1709647123945,-155.82570647,0.00020111,2]
[316906009,1709647123966,-213.833268,0.00020112,2]
[316906010,1709647123988,-155.16136782,0.00020226,2]
[316906011,1709647124009,-2113.35902263,0.00020226,2]
[316906012,1709647124031,-1157.06064663,0.00020227,2]
[316906016,1709647202171,-557.91222225,0.00020102,2]
[316906017,1709647202192,-1605.3304544,0.00020103,2]
[316906018,1709647202213,-401.08160822,0.00020104,2]
[316906019,1709647202233,-155.16136782,0.00020104,2]
[316906020,1709647202254,-2595.97003118,0.00020105,2]
[316906021,1709647202275,-155.16136782,0.00020105,2]
[316906022,1709647202297,-745.22315814,0.00020106,2]
[316906023,1709647202316,-538.72875726,0.00020106,2]
[316906024,1709647202336,-163.29643085,0.00020106,2]
[316906025,1709647202356,-155.16136782,0.00020106,2]
[316906026,1709647202376,-528.19565968,0.00020106,2]
[316906027,1709647202400,-155.16136782,0.00020106,2]
[316906028,1709647202420,-155.16136782,0.00020106,2]
[316906029,1709647202439,-155.16136782,0.00020107,2]
[316906030,1709647202460,-155.16136782,0.00020108,2]
[316906031,1709647202481,-428.86816124,0.00020108,2]
[316906032,1709647202502,-155.16136782,0.00020108,2]
[316906033,1709647202522,-155.16136782,0.00020108,2]
[316906034,1709647202543,-155.16136782,0.00020109,2]
[316906035,1709647202566,-810.24829627,0.00020227,2]
[316906036,1709647202586,-4165.14080163,0.00020439,2]
[316906037,1709647202606,-200.224917,0.00020441,2]
[316906038,1709647202627,-250.0,0.00020497,2]
[316906039,1709647202650,-300.0,0.00020813,2]
[316906040,1709647202670,-1140.2596044,0.00020821,2]
[316906041,1709647202692,-396.16583731,0.00020997,2]
[316906042,1709647202713,-8374.26112489,0.00020997,2]
[316906043,1709647202733,-713.6332863,0.00021236,2]
[316906044,1709647202754,-181.84597078,0.0002127,2]
[316906055,1709647291766,-155.16136782,0.00019899,2]
[316906056,1709647291787,-155.16136782,0.000199,2]
[316906057,1709647291807,-141.67726436,0.00020101,2]
[316906062,1709647360901,-13.48410346,0.00020101,2]
[316906063,1709647360923,-176.31919157,0.00021162,2]
[316906064,1709647360943,-155.15981461,0.00021163,2]
[316906065,1709647360963,-687.7310965,0.00021164,2]
[316906066,1709647360984,-155.82570647,0.00021268,2]
[316906067,1709647361006,-5596.84590077,0.00021268,2]
[316906068,1709647361026,-290.27942906,0.00021269,2]
[316906069,1709647361047,-17872.6655246,0.00021439,2]
[316906070,1709647361154,-155.15981461,0.00021793,2]
[316906071,1709647361174,-538.72875726,0.00021793,2]
[316906072,1709647361194,-528.19565968,0.00021793,2]
[316906073,1709647361214,-401.08160822,0.00021794,2]
[316906074,1709647361234,-557.91222225,0.00021794,2]
[316906075,1709647361257,-2113.35902263,0.00021796,2]
[316906076,1709647361278,-748.16717977,0.00021799,2]
[316906077,1709647361297,-186.77693025,0.00021799,2]
[316906078,1709647361318,-316.2439254,0.000219,2]
[316906079,1709647361339,-1667.68500194,0.00022,2]
[316906080,1709647361360,-322.79075847,0.00022,2]
[316906081,1709647361381,-154.0,0.00022,2]
[316906082,1709647361401,-173.222023,0.00022168,2]
[316906083,1709647361421,-168.92214326,0.00022169,2]
[316906084,1709647361440,-875.09853826,0.0002229,2]
[316906085,1709647361460,-626.36944205,0.00022291,2]
[316906086,1709647361479,-1605.3304544,0.00022594,2]
[316906087,1709647361500,-1000.0,0.00022786,2]
[316906088,1709647361523,-971.64575151,0.00022815,2]
[316906541,1709647836804,-2113.35902263,0.00019688,2]
[316906544,1709647836814,-401.08160822,0.00019689,2]
[316906546,1709647836823,-155.15981461,0.0001969,2]
[316906548,1709647836832,-290.27942906,0.0001969,2]
[316906550,1709647836841,-155.82570647,0.0001969,2]
[316906552,1709647836853,-601.26495014,0.00019693,2]
[316906554,1709647836862,-210.8292836,0.000199,2]
[316906556,1709647836871,-2469.73211174,0.00020934,2]
[316906558,1709647836882,-4751.54910424,0.00020934,2]
[316907000,1709647841256,-2561.08695129,0.00020934,2]
[316907001,1709647841267,-399.55349514,0.00020934,2]
[316907003,1709647841279,-14718.07833759,0.00020934,2]
[316907006,1709647841288,-347.098415,0.00021001,2]
[316907009,1709647841298,-166.666666,0.00021521,2]
[316907011,1709647841307,-426.419176,0.00021533,2]
[316907013,1709647841320,-155.0,0.00022,2]
[316907015,1709647841334,-1667.68500194,0.00022,2]
[316907017,1709647841344,-3234.1600215,0.00022072,2]
[316907019,1709647841352,-3000.0,0.0002215,2]
[316907021,1709647841362,-875.09853826,0.00022814,2]
[316907023,1709647841371,-28.35424849,0.00022815,2]
[316907025,1709647841380,-501.83445219,0.00022815,2]
[316907027,1709647841389,-155.15981461,0.00022815,2]
[316907029,1709647841401,-11503.85410524,0.00022836,3]
[316907031,1709647841410,-2004.47839967,0.00023,2]
[316907033,1709647841419,-2000.0,0.00023,2]
[316907035,1709647841428,-155.0,0.00023,2]
[316907038,1709647841443,-1001.37835507,0.00023,2]
[316907040,1709647841458,-155.0,0.00023014,2]
[316907042,1709647841467,-3989.11838658,0.00023136,5]
[316907044,1709647841477,-1474.63826364,0.00023136,5]
[316907046,1709647841486,-620.3184721,0.00023406,2]
[316907048,1709647841496,-151.38001792,0.000235,2]
[316907050,1709647841506,-2000.0,0.000235,2]
[316907052,1709647841515,-1000.0,0.00023592,2]
[316907054,1709647841525,-1000.0,0.00023606,2]
[316907056,1709647841534,-707.83102933,0.00023692,2]
[316907059,1709647841544,-707.83102932,0.00023744,2]
[316907061,1709647841553,-500.0,0.00023791,2]
[316907063,1709647841563,-227.5,0.00023791,2]
[316907065,1709647841572,-500.0,0.00023791,2]
[316907067,1709647841581,-500.0,0.00023791,2]
[316907069,1709647841590,-500.0,0.00023791,2]
[316907071,1709647841600,-500.0,0.00023791,2]
[316907086,1709647841724,-500.0,0.00023791,2]
[316907088,1709647841737,-228.50654825,0.00023791,2]
[316907090,1709647841747,-500.0,0.00023791,2]
[316907092,1709647841756,-500.0,0.00023791,2]
[316907094,1709647841765,-500.0,0.00023791,2]
[316907096,1709647841774,-500.0,0.00023791,2]
[316907098,1709647841783,-500.0,0.00023791,2]
[316907100,1709647841793,-161.49012075,0.00023791,2]
[316907102,1709647841802,-416.67245786,0.00023791,2]
[316907104,1709647841811,-500.0,0.00023791,2]
[316907106,1709647841819,-500.0,0.00023791,2]
[316907107,1709647841828,-500.0,0.00023791,2]
[316907109,1709647841837,-500.0,0.00023791,2]
[316907111,1709647841846,-500.0,0.00023791,2]
[316907113,1709647841855,-500.0,0.00023791,2]
[316907115,1709647841864,-500.0,0.00023791,2]
[316907117,1709647841875,-500.0,0.00023791,2]
[316907119,1709647841885,-597.28331231,0.00023791,2]
[316907121,1709647841894,-500.0,0.00023791,2]
[316907123,1709647841905,-500.0,0.00023791,2]
[316907125,1709647841914,-500.0,0.00023791,2]
[316907127,1709647841923,-500.0,0.00023791,2]
[316907129,1709647841932,-500.0,0.00023791,2]
[316907131,1709647841941,-500.0,0.00023791,2]
[316907133,1709647841950,-500.0,0.00023791,2]
[316907135,1709647841959,-500.0,0.00023791,2]
[316907137,1709647841968,-500.0,0.00023791,2]
[316907140,1709647841978,-500.0,0.00023791,2]
[316907142,1709647841987,-500.0,0.00023791,2]
[316907144,1709647841996,-500.0,0.00023791,2]
[316907146,1709647842007,-500.0,0.00023791,2]
[316907148,1709647842048,-217.84013176,0.00023791,2]
[316907150,1709647842057,-500.0,0.00023791,2]
[316907152,1709647842066,-500.0,0.00023791,2]
[316907154,1709647842075,-500.0,0.00023791,2]
[316907156,1709647842084,-500.0,0.00023791,2]
[316907158,1709647842093,-500.0,0.00023791,2]
[316907160,1709647842102,-500.0,0.00023791,2]
[316907162,1709647842111,-500.0,0.00023791,2]
[316907164,1709647842126,-500.0,0.00023791,2]
[316907166,1709647842135,-500.0,0.00023791,2]
[316907168,1709647842144,-500.0,0.00023791,2]
[316907170,1709647842156,-500.0,0.00023791,2]
[316907173,1709647842166,-500.0,0.00023791,2]
[316907174,1709647842174,-500.0,0.00023791,2]
[316907177,1709647842184,-500.0,0.00023791,2]
[316907178,1709647842194,-500.0,0.00023791,2]
[316907181,1709647842204,-500.0,0.00023791,2]
[316907182,1709647842213,-500.0,0.00023791,2]
[316907185,1709647842223,-500.0,0.00023791,2]
[316907186,1709647842232,-500.0,0.00023791,2]
[316907188,1709647842241,-500.0,0.00023791,2]
[316907190,1709647842251,-272.80348886,0.00023791,2]
[316907192,1709647842260,-500.0,0.00023791,2]
[316907194,1709647842269,-500.0,0.00023791,2]
[316907196,1709647842278,-500.0,0.00023791,2]
[316907199,1709647842289,-500.0,0.00023791,2]
[316907201,1709647842298,-500.0,0.00023791,2]
[316907203,1709647842307,-500.0,0.00023791,2]
[316907205,1709647842316,-500.0,0.00023791,2]
[316907207,1709647842325,-500.0,0.00023791,2]
[316907209,1709647842334,-500.0,0.00023791,2]
[316907211,1709647842344,-398.15554447,0.00023791,2]
[316907213,1709647842353,-500.0,0.00023791,2]
[316907215,1709647842363,-500.0,0.00023791,2]
[316907217,1709647842372,-500.0,0.00023791,2]
[316907219,1709647842382,-500.0,0.00023791,2]
[316907220,1709647842390,-500.0,0.00023791,2]
[316907222,1709647842402,-500.0,0.00023791,2]
[316907224,1709647842411,-500.0,0.00023791,2]
[316907226,1709647842420,-500.0,0.00023791,2]
[316907228,1709647842429,-500.0,0.00023791,2]
[316907230,1709647842438,-500.0,0.00023791,2]
[316907232,1709647842447,-500.0,0.00023791,2]
[316907234,1709647842456,-500.0,0.00023791,2]
[316907237,1709647842465,-500.0,0.00023791,2]
[316907239,1709647842475,-500.0,0.00023791,2]
[316907241,1709647842484,-500.0,0.00023791,2]
[316907243,1709647842493,-500.0,0.00023791,2]
[316907245,1709647842502,-500.0,0.00023791,2]